bitfinex-derivatives/quotes_BTCF0:USTF0_20260315
["timestamp","ask_amount","ask_price","bid_price","bid_amount"]
[1773617249301,0.00362,72664.0,72649.0,0.49049038]
[1773617249302,0.0014,72652.0,72649.0,0.49049038]
[1773617249498,0.00362,72664.0,72649.0,0.49049038]
[1773617249704,0.0014,72663.0,72649.0,0.49049038]
[1773617251006,0.041279,72657.0,72649.0,0.49049038]
[1773617251201,0.00362,72664.0,72649.0,0.49049038]
[1773617251406,0.0014,72663.0,72649.0,0.49049038]
[1773617251802,0.0014,72663.0,72648.0,4.60519809]
[1773617252106,0.041283,72651.0,72629.0,0.49049038]
[1773617252410,0.0014,72650.0,72634.0,0.53178238]
[1773617252606,0.0014,72650.0,72634.0,0.49049038]
[1773617252806,0.041285,72648.0,72635.0,4.28501796]
[1773617253104,0.041286,72646.0,72636.0,0.49049038]
[1773617253310,0.041286,72645.0,72636.0,0.49049038]
[1773617253512,0.041285,72647.0,72636.0,0.49049038]
[1773617257311,0.041286,72646.0,72636.0,0.49049038]
[1773617257515,0.041286,72646.0,72637.0,2.81427809]
[1773617258209,0.041286,72646.0,72636.0,0.49049038]
[1773617258605,0.0014,72650.0,72636.0,0.49049038]
[1773617258801,0.0014,72650.0,72637.0,3.79452758]
[1773617259001,0.0014,72650.0,72638.0,0.49049038]
[1773617259214,0.041285,72647.0,72638.0,0.49049038]
[1773617259405,0.041286,72646.0,72637.0,3.79452758]
[1773617259600,0.00362,72655.0,72638.0,0.49049038]
[1773617260110,0.0014,72654.0,72638.0,0.49049038]
[1773617260310,0.00362,72655.0,72639.0,0.49049038]
[1773617260608,0.041282,72652.0,72640.0,0.49049038]
[1773617261398,0.4565343,72652.0,72590.0,0.50868693]
[1773617261599,0.4565343,72646.0,72624.0,0.49049038]
[1773617262105,0.00362,72655.0,72605.0,0.49049038]
[1773617262106,0.4565343,72642.0,72605.0,0.49049038]
[1773617262310,0.041301,72620.0,72605.0,0.49049038]
[1773617262513,0.0014,72619.0,72606.0,1.94323947]
[1773617262708,0.0014,72618.0,72606.0,0.49049038]
[1773617262910,0.0014,72617.0,72600.0,0.49049038]
[1773617263215,0.0014,72616.0,72603.0,0.53179938]
[1773617263708,0.0014,72616.0,72605.0,0.041309]
[1773617263906,0.0014,72616.0,72606.0,0.49049038]
[1773617264408,0.0014,72615.0,72608.0,0.49049038]
[1773617264612,0.0014,72614.0,72608.0,0.49049038]
[1773617265109,0.00362,72625.0,72610.0,0.49049038]
[1773617265318,0.041297,72626.0,72597.0,1.76010522]
[1773617265510,0.0014,72625.0,72598.0,0.49049038]
[1773617265917,0.041297,72626.0,72598.0,0.49049038]
[1773617266211,0.0014,72625.0,72617.0,0.49049038]
[1773617266411,0.0014,72626.0,72619.0,0.49049038]
[1773617266615,0.13058129,72641.0,72632.0,0.49049038]
[1773617266816,0.03466376,72655.0,72619.0,0.0014]
[1773617266817,0.0014,72646.0,72635.0,0.49049038]
[1773617267118,0.30304,72674.0,72637.0,0.49049038]
[1773617267119,0.0014,72645.0,72637.0,0.49049038]
[1773617267316,0.0014,72646.0,72637.0,0.49049038]
[1773617267611,0.00362,72650.0,72639.0,0.49049038]
[1773617267818,0.4565343,72662.0,72639.0,0.49049038]
[1773617268018,0.001,72646.0,72640.0,1.45274909]
[1773617268210,0.041282,72652.0,72640.0,1.45274909]
[1773617268720,0.002,72646.0,72640.0,1.45274909]
[1773617269029,0.041284,72650.0,72640.0,1.94323947]
[1773617269225,0.0014,72649.0,72640.0,1.44994909]
[1773617269407,0.0014,72648.0,72640.0,1.44994909]
[1773617269608,0.0014,72647.0,72640.0,1.44994909]
[1773617269808,0.0014,72646.0,72640.0,1.44994909]
[1773617270007,0.0014,72645.0,72640.0,1.44994909]
[1773617270214,0.4565343,72657.0,72640.0,1.44994909]
[1773617270412,0.041284,72648.0,72640.0,1.44994909]
[1773617270715,0.0014,72647.0,72640.0,1.44994909]
[1773617270922,0.0014,72646.0,72640.0,1.44994909]
[1773617271103,0.00065856,72645.0,72640.0,1.44994909]
[1773617271310,0.0014,72644.0,72635.0,0.00362]
[1773617271509,0.4579343,72643.0,72607.0,0.49049038]
[1773617271705,0.041294,72632.0,72619.0,0.49049038]
[1773617271910,0.0014,72632.0,72617.0,0.47088049]
[1773617272221,0.0014,72631.0,72625.0,0.47088049]
[1773617272413,0.0014,72630.0,72625.0,0.47088049]
[1773617272609,0.0014,72630.0,72627.0,0.47088049]
[1773617272815,0.0014,72631.0,72628.0,0.12238609]
[1773617273011,0.0014,72631.0,72628.0,0.59160989]
[1773617273311,0.0014,72631.0,72628.0,0.12098609]
[1773617274318,0.0042,72630.0,72620.0,0.4692238]
[1773617274523,0.0014,72629.0,72623.0,0.4692238]
[1773617274725,0.0014,72628.0,72623.0,0.4692238]
[1773617275022,0.0014,72628.0,72625.0,0.4692238]
[1773617276625,0.0014,72634.0,72628.0,0.4692238]
[1773617277122,0.00362,72642.0,72624.0,0.59020989]
[1773617277423,0.041291,72636.0,72624.0,0.12098609]
[1773617278422,0.041291,72636.0,72624.0,0.59020989]
[1773617278815,0.041292,72635.0,72624.0,0.59020989]
[1773617279130,0.0014,72634.0,72624.0,0.12098609]
[1773617280429,0.0014,72634.0,72625.0,0.041297]
[1773617280925,0.0014,72634.0,72624.0,0.12098609]
[1773617281825,0.0014,72634.0,72625.0,0.4692238]
[1773617282027,0.0014,72633.0,72627.0,0.4692238]
[1773617282630,0.0014,72633.0,72628.0,0.12098609]
[1773617282934,0.08538836,72640.0,72628.0,0.59020989]
[1773617283127,0.0014,72639.0,72629.0,0.4692238]
[1773617283633,0.0014,72639.0,72628.0,0.12098609]
[1773617283822,0.46616934,72641.0,72628.0,0.12098609]
[1773617284018,0.00362,72642.0,72628.0,0.12098609]
[1773617284218,0.0014,72641.0,72633.0,0.00826071]
[1773617285130,0.0014,72641.0,72628.0,0.12098609]
[1773617286018,0.46756934,72641.0,72628.0,0.12098609]
[1773617286815,0.46756934,72641.0,72629.0,0.12098609]
[1773617287023,0.46756934,72641.0,72623.0,0.00362]
[1773617288525,0.0014,72641.0,72624.0,0.12098609]
[1773617288735,0.0014,72641.0,72625.0,0.4692238]
[1773617289234,0.0014,72641.0,72626.0,0.4692238]
[1773617289420,0.0014,72641.0,72627.0,0.041296]
[1773617289625,0.00362,72651.0,72636.0,0.00826071]
[1773617289826,0.0014,72647.0,72636.0,0.00826071]
[1773617291131,0.041287,72644.0,72636.0,0.00826071]
[1773617291634,0.041287,72643.0,72636.0,0.00826071]
[1773617292523,0.00362,72651.0,72639.0,0.4692238]
[1773617292729,0.041285,72647.0,72634.0,0.041292]
[1773617292929,0.041286,72646.0,72634.0,0.4692238]
[1773617293128,0.041286,72646.0,72643.0,7.1e-07]
[1773617293331,0.041286,72646.0,72635.0,0.12098609]
[1773617293528,0.042683,72650.0,72636.0,0.4692238]
[1773617293736,0.041284,72648.0,72636.0,0.5105148]
[1773617294236,0.041285,72647.0,72636.0,0.4692238]
[1773617294627,0.0014,72650.0,72635.0,0.12098609]
[1773617294930,0.041286,72646.0,72635.0,0.12098609]
[1773617295732,0.041286,72646.0,72633.0,0.041292]
[1773617295933,0.041286,72646.0,72634.0,0.12098609]
[1773617296544,0.46756934,72650.0,72634.0,0.12098609]
[1773617296725,0.041286,72646.0,72634.0,0.12098609]
[1773617296932,0.46756934,72650.0,72634.0,0.12098609]
[1773617297135,0.46616934,72649.0,72634.0,0.12098609]
[1773617297740,0.46616934,72649.0,72634.0,2.6e-07]
[1773617298841,0.041291,72637.0,72634.0,2.6e-07]
[1773617299141,0.042691,72636.0,72624.0,0.041298]
[1773617299537,0.0014,72636.0,72624.0,0.041298]
[1773617300339,0.0014,72636.0,72620.0,0.0413]
[1773617300735,0.19389543,72635.0,72620.0,0.0413]
[1773617300930,0.19389543,72634.0,72620.0,0.0413]
[1773617301132,0.19389543,72633.0,72622.0,0.041299]
[1773617301332,0.19389543,72632.0,72622.0,0.041299]
[1773617301531,0.19389543,72631.0,72622.0,0.041299]
[1773617301736,0.041292,72634.0,72622.0,0.041299]
[1773617301933,0.041292,72634.0,72618.0,0.4692238]
[1773617301934,0.041292,72634.0,72620.0,0.0413]
[1773617302243,0.041294,72632.0,72620.0,0.0413]
[1773617303236,0.45080282,72652.0,72630.0,0.45951174]
[1773617303436,0.0014,72656.0,72648.0,0.041284]
[1773617303641,0.0014,72656.0,72644.0,0.45951174]
[1773617303837,0.0014,72655.0,72648.0,0.041284]
[1773617304050,0.0014,72654.0,72651.0,0.45951174]
[1773617304244,0.0014,72653.0,72651.0,0.45951174]
[1773617304430,0.041275,72664.0,72651.0,0.45951174]
[1773617304635,0.042676,72663.0,72651.0,0.45951174]
[1773617304945,0.042677,72662.0,72651.0,0.45951174]
[1773617305141,0.0014,72661.0,72651.0,0.45951174]
[1773617305837,0.001,72656.0,72651.0,0.45951174]
[1773617306428,0.042677,72661.0,72651.0,0.45951174]
[1773617306628,0.043677,72661.0,72651.0,0.45951174]
[1773617307243,0.042677,72661.0,72651.0,0.45951174]
[1773617307846,0.0014,72661.0,72651.0,0.45951174]
[1773617308048,0.0014,72660.0,72651.0,0.45951174]
[1773617308545,0.0014,72660.0,72651.0,0.50079374]
[1773617308746,0.00353,72670.0,72652.0,0.45951174]
[1773617308943,0.00353,72670.0,72645.0,0.00362]
[1773617308944,0.0335885,72674.0,72661.0,0.50078874]
[1773617309139,0.0014,72673.0,72661.0,0.50078874]
[1773617309341,0.0014,72672.0,72664.0,0.45951174]
[1773617309541,0.0014,72671.0,72664.0,0.45951174]
[1773617310047,0.0014,72670.0,72664.0,0.45951174]
[1773617310248,0.0014,72669.0,72664.0,0.50078674]
[1773617310447,0.0014,72668.0,72664.0,0.50078674]
[1773617310742,0.00068794,72681.0,72666.0,0.45951174]
[1773617310947,0.0014,72680.0,72665.0,0.041274]
[1773617311148,0.00353,72674.0,72665.0,0.041274]
[1773617311445,0.00353,72674.0,72663.0,0.45951174]
[1773617311446,0.0014,72673.0,72663.0,0.45951174]
[1773617311645,0.00068794,72681.0,72666.0,0.45951174]
[1773617311947,9.4e-07,72681.0,72671.0,0.50078274]
[1773617314845,9.4e-07,72681.0,72665.0,0.00362]
[1773617314846,0.45080376,72681.0,72665.0,0.00222]
[1773617315156,0.03370629,72689.0,72665.0,0.00222]
[1773617315157,0.0014,72680.0,72665.0,0.00222]
[1773617315345,0.041267,72678.0,72665.0,0.46173174]
[1773617315545,0.041271,72672.0,72665.0,0.00222]
[1773617315746,0.41076425,72681.0,72660.0,0.45951174]
[1773617315946,0.41076425,72682.0,72663.0,0.45951174]
[1773617316346,0.41076425,72682.0,72666.0,0.45951174]
[1773617316546,0.041268,72677.0,72666.0,0.45951174]
[1773617316747,0.041268,72677.0,72663.0,0.041275]
[1773617316944,0.041271,72672.0,72658.0,0.041278]
[1773617317254,0.0014,72671.0,72659.0,0.50078974]
[1773617317453,0.45080282,72670.0,72657.0,0.00362]
[1773617317654,0.45080282,72670.0,72630.0,0.65703623]
[1773617317655,0.041276,72663.0,72649.0,0.45951174]
[1773617317855,0.0014,72671.0,72653.0,0.45951174]
[1773617318058,0.041272,72670.0,72657.0,0.45951174]
[1773617319063,0.0014,72671.0,72657.0,0.45951174]
[1773617319373,0.041273,72669.0,72657.0,0.45951174]
[1773617319875,0.041273,72667.0,72657.0,0.45951174]
[1773617320064,0.041273,72667.0,72657.0,0.45882288]
[1773617320268,0.041275,72665.0,72652.0,0.50079274]
[1773617320460,0.041276,72663.0,72649.0,0.041283]
[1773617320666,0.0014,72662.0,72651.0,0.041282]
[1773617320864,0.0014,72661.0,72651.0,0.041282]
[1773617321263,0.0014,72661.0,72634.0,0.45951174]
[1773617321264,0.041281,72655.0,72634.0,0.45951174]
[1773617321459,0.041282,72653.0,72632.0,0.45951174]
[1773617321665,0.041282,72652.0,72632.0,0.45951174]
[1773617321972,0.041282,72652.0,72643.0,0.00344]
[1773617321973,0.0014,72651.0,72643.0,0.00344]
[1773617322359,0.041282,72652.0,72643.0,0.00344]
[1773617322560,0.0014,72650.0,72643.0,0.00344]
[1773617323166,0.0014,72650.0,72639.0,0.50080074]
[1773617323369,0.0014,72650.0,72639.0,0.45951174]
[1773617323559,0.0014,72650.0,72634.0,0.50080374]
[1773617324058,0.041284,72649.0,72635.0,0.50080274]
[1773617324970,0.041284,72649.0,72636.0,0.041291]
[1773617325173,0.041284,72649.0,72637.0,0.45951174]
[1773617325374,0.0014,72650.0,72637.0,0.50080174]
[1773617326064,0.0014,72650.0,72638.0,0.50080074]
[1773617326475,0.0014,72649.0,72639.0,0.041289]
[1773617326668,0.0014,72648.0,72640.0,0.45951174]
[1773617328279,0.0014,72648.0,72634.0,0.00344]
[1773617328280,0.0014,72648.0,72636.0,0.45951174]
[1773617328670,0.0014,72647.0,72638.0,0.50080174]
[1773617328870,0.03384155,72659.0,72634.0,0.00344]
[1773617328871,0.0014,72646.0,72635.0,0.45951174]
[1773617329379,0.0014,72646.0,72639.0,0.45951174]
[1773617331778,0.0014,72646.0,72639.0,0.50080074]
[1773617332079,0.0014,72647.0,72635.0,0.48463492]
[1773617332277,0.03384155,72659.0,72635.0,0.48463492]
[1773617332480,0.0014,72658.0,72643.0,0.48463492]
[1773617332774,0.03832306,72661.0,72643.0,0.48463492]
[1773617332982,0.0014,72660.0,72635.0,0.49068538]
[1773617333175,0.0014,72659.0,72647.0,0.49068538]
[1773617333576,0.0014,72658.0,72648.0,0.041284]
[1773617333781,0.0014,72657.0,72650.0,0.49068538]
[1773617334481,0.0014,72656.0,72650.0,0.49068538]
[1773617334974,0.03428749,72665.0,72650.0,0.49068538]
[1773617335183,0.0014,72664.0,72654.0,0.49068538]
[1773617335366,0.042676,72663.0,72654.0,0.49068538]
[1773617335571,0.0014,72662.0,72654.0,0.49068538]
[1773617335770,0.041278,72659.0,72645.0,0.041286]
[1773617335971,0.0014,72658.0,72645.0,0.041286]
[1773617336180,0.0014,72658.0,72646.0,0.041285]
[1773617337180,0.0014,72658.0,72647.0,0.041284]
[1773617337381,0.0014,72658.0,72640.0,0.53541338]
[1773617337382,0.041282,72653.0,72640.0,0.53541338]
[1773617337578,0.46792265,72658.0,72640.0,0.00344]
[1773617338187,0.46652265,72657.0,72631.0,0.49147039]
[1773617338675,0.46652265,72657.0,72631.0,0.00078501]
[1773617338872,0.46652265,72647.0,72631.0,0.00078501]
[1773617339077,0.041289,72640.0,72631.0,0.00078501]
[1773617339784,0.041289,72640.0,72626.0,0.00353]
[1773617339785,0.041295,72630.0,72626.0,0.00353]
[1773617339982,0.0014,72629.0,72617.0,0.53198638]
[1773617340178,0.0014,72628.0,72619.0,0.041301]
[1773617340380,0.041292,72634.0,72607.0,0.49068538]
[1773617340576,0.0014,72633.0,72625.0,0.49068538]
[1773617340780,0.0014,72632.0,72625.0,0.49068538]
[1773617343186,0.0014,72631.0,72630.0,0.53197938]
[1773617343388,0.0014,72631.0,72627.0,0.041296]
[1773617343585,0.0014,72631.0,72627.0,0.53198138]
[1773617343783,0.00362,72642.0,72627.0,0.53198138]
[1773617344088,0.0014,72641.0,72616.0,0.49068538]
[1773617344282,0.46792265,72641.0,72619.0,0.0413]
[1773617344488,0.041294,72632.0,72618.0,0.041301]
[1773617344691,0.041294,72632.0,72619.0,0.0413]
[1773617344692,0.0014,72631.0,72619.0,0.0413]
[1773617345277,0.0014,72631.0,72616.0,0.49068538]
[1773617345278,0.041296,72627.0,72615.0,0.00362]
[1773617345478,0.041306,72611.0,72601.0,0.49068538]
[1773617345679,0.0014,72610.0,72601.0,0.49068538]
[1773617345886,0.0014,72609.0,72601.0,0.49068538]
[1773617346177,0.0014,72608.0,72601.0,0.49068538]
[1773617346372,0.0014,72607.0,72601.0,0.49068538]
[1773617346591,0.0014,72606.0,72601.0,0.49068538]
[1773617346771,0.0014,72605.0,72601.0,0.49068538]
[1773617346979,0.0014,72604.0,72601.0,0.53199638]
[1773617347290,0.0014,72603.0,72601.0,0.53199638]
[1773617347474,0.0014,72602.0,72601.0,0.49068538]
[1773617347673,0.041301,72619.0,72605.0,0.49068538]
[1773617347879,0.00362,72616.0,72605.0,0.49068538]
[1773617348079,0.00362,72616.0,72605.0,0.53199338]
[1773617349679,0.00362,72616.0,72601.0,0.001]
[1773617349891,0.041303,72615.0,72600.0,0.041311]
[1773617350088,0.041303,72615.0,72602.0,0.49068538]
[1773617350279,0.044923,72616.0,72603.0,0.04131]
[1773617350485,0.044923,72616.0,72602.0,0.49068538]
[1773617351387,0.46652265,72634.0,72612.0,0.041304]
[1773617351586,0.46652265,72634.0,72609.0,0.041306]
[1773617351587,0.041299,72623.0,72609.0,0.041306]
[1773617351787,0.0014,72622.0,72609.0,0.041306]
[1773617351989,0.042699,72622.0,72609.0,0.041306]
[1773617352292,0.0014,72622.0,72610.0,0.53199038]
[1773617353791,0.0014,72622.0,72604.0,0.041309]
[1773617354094,0.0014,72622.0,72604.0,0.53199438]
[1773617354095,0.041302,72618.0,72604.0,0.53199438]
[1773617354389,0.0014,72622.0,72604.0,0.49068538]
[1773617354390,0.041303,72616.0,72604.0,0.49068538]
[1773617354592,0.0014,72615.0,72603.0,0.00362]
[1773617355294,0.042703,72615.0,72602.0,0.04131]
[1773617355491,0.042703,72615.0,72602.0,0.53199538]
[1773617355890,0.0014,72615.0,72604.0,0.041309]
[1773617356194,0.46652265,72630.0,72607.0,0.53199238]
[1773617356195,0.0014,72614.0,72607.0,0.53199238]
[1773617356397,0.0014,72613.0,72607.0,0.53199238]
[1773617356591,0.041301,72619.0,72607.0,0.53199238]
[1773617356798,0.0014,72618.0,72607.0,0.53199238]
[1773617357199,0.041301,72619.0,72607.0,0.53199238]
[1773617357402,0.0014,72618.0,72607.0,0.49068538]
[1773617357698,0.041301,72619.0,72607.0,0.49068538]
[1773617357889,0.0014,72618.0,72607.0,0.49068538]
[1773617358090,0.041303,72616.0,72607.0,0.49068538]
[1773617358399,0.042701,72618.0,72607.0,0.49068538]
[1773617360400,0.0014,72618.0,72608.0,0.041307]
[1773617360796,0.0014,72618.0,72608.0,0.53199238]
[1773617360993,0.0014,72618.0,72608.0,0.49068538]
[1773617361702,0.042702,72618.0,72608.0,0.49068538]
[1773617362303,0.0014,72618.0,72604.0,0.041309]
[1773617362502,0.04131,72604.0,72588.0,0.49932279]
[1773617362701,0.0014,72603.0,72587.0,0.49932279]
[1773617362907,0.0014,72602.0,72587.0,0.49932279]
[1773617363101,0.48875504,72618.0,72587.0,0.49932279]
[1773617363294,0.48875504,72616.0,72595.0,0.54063679]
[1773617363495,0.041307,72608.0,72596.0,0.041313]
[1773617363800,0.0014,72607.0,72595.0,0.49932279]
[1773617364102,0.00362,72606.0,72595.0,0.49932279]
[1773617364303,0.00362,72606.0,72581.0,0.00421889]
[1773617364304,0.041311,72601.0,72585.0,0.49932279]
[1773617364500,0.0014,72600.0,72585.0,0.49932279]
[1773617365002,0.0014,72600.0,72584.0,0.49932279]
[1773617365390,0.0014,72600.0,72581.0,0.00421889]
[1773617365391,0.0014,72600.0,72589.0,0.041317]
[1773617365591,0.0014,72600.0,72586.0,0.041319]
[1773617365797,0.0014,72600.0,72584.0,0.49932279]
[1773617366104,0.0014,72600.0,72588.0,0.49932279]
[1773617367102,0.0014,72600.0,72581.0,0.00421889]
[1773617367103,0.041315,72594.0,72583.0,0.49945977]
[1773617367303,0.041313,72598.0,72571.0,0.49932279]
[1773617367601,0.08686829,72600.0,72584.0,0.49932279]
[1773617367803,0.041313,72598.0,72584.0,0.54064279]
[1773617367991,0.041312,72600.0,72585.0,0.54064279]
[1773617368202,0.042712,72599.0,72585.0,0.54064279]
[1773617368404,0.042713,72598.0,72585.0,0.54064279]
[1773617369204,0.041313,72597.0,72585.0,0.54064279]
[1773617369806,0.0014,72598.0,72580.0,0.041322]
[1773617369995,0.0014,72598.0,72578.0,0.50276279]
[1773617369996,0.041314,72596.0,72579.0,0.49932279]
[1773617370198,0.00010302,72595.0,72579.0,0.49932279]
[1773617371908,0.00010302,72595.0,72583.0,0.54064379]
[1773617373013,0.041312,72599.0,72586.0,0.49932279]
[1773617373210,0.48875504,72615.0,72595.0,0.49932279]
[1773617373410,0.0014,72607.0,72595.0,0.49932279]
[1773617373610,0.0014,72607.0,72571.0,0.59431988]
[1773617373611,0.041312,72600.0,72586.0,0.041319]
[1773617373813,0.12678029,72600.0,72586.0,0.041319]
[1773617374015,0.08546829,72600.0,72583.0,0.54064379]
[1773617374214,0.08546829,72600.0,72581.0,0.041322]
[1773617374215,0.041315,72595.0,72581.0,0.041322]
[1773617374414,0.0014,72594.0,72581.0,0.041322]
[1773617374915,0.0014,72594.0,72577.0,0.041324]
[1773617374916,0.12678529,72591.0,72577.0,0.041324]
[1773617375217,0.041316,72592.0,72580.0,0.49932279]
[1773617377518,0.0014,72591.0,72580.0,0.49932279]
[1773617377718,0.08546829,72590.0,72574.0,0.041326]
[1773617378017,0.12678529,72590.0,72576.0,0.041325]
[1773617378319,0.041318,72589.0,72576.0,0.041325]
[1773617378518,0.041319,72588.0,72574.0,0.54064879]
[1773617378718,0.041319,72588.0,72575.0,0.041325]
[1773617380022,0.041319,72588.0,72576.0,0.041325]
[1773617380518,0.0014,72591.0,72571.0,0.49932279]
[1773617380823,0.041319,72588.0,72571.0,0.49932279]
[1773617381020,0.0014,72591.0,72573.0,0.49932279]
[1773617381221,0.041319,72587.0,72574.0,0.041326]
[1773617381615,0.0014,72591.0,72572.0,0.041327]
[1773617381821,0.04132,72586.0,72573.0,0.041327]
[1773617383135,0.04132,72586.0,72574.0,0.041326]
[1773617384435,0.04132,72585.0,72572.0,0.041327]
[1773617384739,0.0014,72584.0,72570.0,0.00353]
[1773617385038,0.03443892,72589.0,72570.0,0.00353]
[1773617385039,0.49015504,72583.0,72570.0,0.00353]
[1773617385623,0.49015504,72583.0,72557.0,0.49932279]
[1773617385834,0.48875504,72579.0,72557.0,0.041336]
[1773617386240,0.48875504,72577.0,72558.0,0.041335]
[1773617386443,0.041327,72573.0,72556.0,0.49932279]
[1773617386928,0.041328,72571.0,72556.0,0.49932279]
[1773617387736,0.041328,72571.0,72558.0,0.041335]
[1773617387942,0.041327,72573.0,72559.0,0.041334]
[1773617388136,0.00362,72575.0,72556.0,0.49932279]
[1773617388437,0.00362,72575.0,72535.0,0.041348]
[1773617388438,0.0014,72574.0,72549.0,0.49932279]
[1773617388638,0.33690897,72591.0,72551.0,0.49932279]
[1773617388940,0.041323,72581.0,72555.0,0.49932279]
[1773617389150,0.0014,72580.0,72568.0,0.041329]
[1773617389731,0.00484,72580.0,72568.0,0.041329]
[1773617390943,0.046163,72580.0,72568.0,0.041329]
[1773617391146,0.046163,72580.0,72564.0,0.49932279]
[1773617391147,0.046163,72580.0,72566.0,0.04133]
[1773617391443,0.046163,72580.0,72535.0,0.041348]
[1773617391444,0.48875504,72571.0,72523.0,0.49932279]
[1773617391750,0.041345,72541.0,72530.0,0.49932279]
[1773617391933,0.08552041,72550.0,72531.0,0.49173443]
[1773617391934,0.0014,72540.0,72531.0,0.49173443]
[1773617392244,0.041339,72553.0,72536.0,0.041348]
[1773617392432,0.04134,72550.0,72535.0,0.47018383]
[1773617392635,0.00154838,72549.0,72536.0,0.47018383]
[1773617392845,0.00154838,72549.0,72536.0,0.51153083]
[1773617395246,0.00014838,72549.0,72536.0,0.47018383]
[1773617395438,0.03472423,72553.0,72539.0,0.041346]
[1773617395640,0.0014,72548.0,72539.0,0.041346]
[1773617395951,0.0014,72548.0,72539.0,0.28733018]
[1773617396445,0.0014,72553.0,72540.0,0.46121854]
[1773617396752,0.0014,72553.0,72543.0,0.46121854]
[1773617397052,0.0014,72553.0,72512.0,0.46121854]
[1773617397053,0.4662263,72552.0,72512.0,0.46121854]
[1773617397241,0.041343,72546.0,72530.0,0.041351]
[1773617397840,0.5075673,72549.0,72532.0,0.04135]
[1773617398040,0.00344,72544.0,72535.0,0.041348]
[1773617398236,0.0014,72543.0,72522.0,0.46121854]
[1773617399346,0.03358836,72554.0,72538.0,0.50256554]
[1773617399544,0.042738,72553.0,72538.0,0.43363107]
[1773617399940,0.042738,72553.0,72517.0,0.46121854]
[1773617400150,0.04134,72551.0,72517.0,0.46121854]
[1773617400353,0.04134,72551.0,72537.0,0.041347]
[1773617400547,0.0014,72553.0,72534.0,0.46121854]
[1773617400748,0.0014,72552.0,72534.0,0.46121854]
[1773617401147,0.041338,72554.0,72539.0,0.041346]
[1773617401349,0.55174671,72570.0,72547.0,0.46121854]
[1773617401645,0.041335,72559.0,72544.0,0.041343]
[1773617401852,0.0014,72558.0,72544.0,0.041343]
[1773617402052,0.00362,72555.0,72544.0,0.041343]
[1773617402246,0.00362,72555.0,72543.0,0.041344]
[1773617403258,0.00362,72555.0,72536.0,0.46121854]
[1773617403456,0.12686041,72550.0,72536.0,0.041348]
[1773617403650,0.0014,72549.0,72536.0,0.041348]
[1773617403854,0.0014,72549.0,72531.0,0.46484854]
[1773617404258,0.4676263,72549.0,72535.0,0.041348]
[1773617404457,0.4676263,72549.0,72536.0,0.041347]
[1773617404761,0.0014,72549.0,72536.0,0.041347]
[1773617405058,0.0014,72549.0,72532.0,0.46121854]
[1773617405356,0.0014,72549.0,72531.0,0.00363]
[1773617405357,0.042741,72549.0,72531.0,0.46484854]
[1773617405757,0.0014,72549.0,72536.0,0.041348]
[1773617405964,0.0014,72549.0,72537.0,0.041347]
[1773617406162,0.0014,72548.0,72540.0,0.46121854]
[1773617406362,0.0014,72547.0,72540.0,0.46121854]
[1773617406558,0.044958,72555.0,72540.0,0.46121854]
[1773617406862,0.0014,72554.0,72540.0,0.46121854]
[1773617407063,0.042738,72554.0,72540.0,0.46121854]
[1773617407253,0.00362,72555.0,72541.0,0.46121854]
[1773617407452,0.0014,72554.0,72551.0,0.041339]
[1773617407654,0.0014,72553.0,72547.0,0.46121854]
[1773617407856,0.55174671,72580.0,72532.0,0.46121854]
[1773617408057,0.55174671,72580.0,72531.0,0.0014]
[1773617408058,0.21615162,72579.0,72537.0,0.46121854]
[1773617408260,0.21615162,72579.0,72536.0,0.041348]
[1773617408261,0.21615162,72578.0,72567.0,0.04133]
[1773617408562,0.21615162,72577.0,72570.0,0.041328]
[1773617408758,0.21615162,72576.0,72571.0,0.041328]
[1773617408959,0.21475162,72575.0,72568.0,0.50254754]
[1773617409158,0.21475162,72574.0,72568.0,0.50254754]
[1773617409356,0.21475162,72573.0,72568.0,0.46121854]
[1773617409558,0.21475162,72572.0,72564.0,0.46121854]
[1773617409759,0.0014,72571.0,72560.0,0.46121854]
[1773617409963,0.041322,72582.0,72560.0,0.46121854]
[1773617410268,0.001,72575.0,72568.0,0.041329]
[1773617410460,0.0014,72574.0,72568.0,0.041329]
[1773617410657,0.001,72575.0,72568.0,0.041329]
[1773617410870,0.0014,72574.0,72568.0,0.50254754]
[1773617411163,0.0014,72573.0,72568.0,0.50254754]
[1773617411569,0.1263212,72584.0,72569.0,0.50254754]
[1773617411570,0.0014,72572.0,72569.0,0.50254754]
[1773617411754,0.0014,72573.0,72569.0,0.50254754]
[1773617411957,0.0014,72572.0,72570.0,0.041329]
[1773617412158,0.041321,72584.0,72571.0,0.46121854]
[1773617412361,0.0014,72583.0,72572.0,0.03712638]
[1773617412670,0.0014,72583.0,72571.0,0.25439803]
[1773617412873,0.0014,72578.0,72574.0,0.041326]
[1773617413173,0.0014,72583.0,72572.0,0.041327]
[1773617413373,0.0014,72583.0,72572.0,0.50254554]
[1773617413872,0.0014,72582.0,72575.0,0.46121854]
[1773617414069,0.0014,72581.0,72574.0,0.041326]
[1773617414263,0.0014,72580.0,72574.0,0.041326]
[1773617414465,0.0014,72582.0,72575.0,0.041325]
[1773617414658,0.1265372,72589.0,72574.0,0.46121854]
[1773617414865,0.0014,72588.0,72574.0,0.46121854]
[1773617415064,0.0014,72587.0,72577.0,0.50254254]
[1773617415367,0.0014,72586.0,72578.0,0.041324]
[1773617415569,0.001,72583.0,72578.0,0.50254254]
[1773617416276,0.0014,72586.0,72578.0,0.50254254]
[1773617416470,0.0014,72586.0,72575.0,0.041325]
[1773617416670,0.0014,72586.0,72577.0,0.041324]
[1773617417588,0.4662263,72616.0,72581.0,0.46121854]
[1773617417878,0.0014,72615.0,72597.0,0.041313]
[1773617418069,0.0014,72615.0,72594.0,0.46121854]
[1773617418070,0.041306,72611.0,72596.0,0.041314]
[1773617418475,0.08552041,72610.0,72596.0,0.041314]
[1773617418670,0.041306,72611.0,72596.0,0.041314]
[1773617419671,0.041304,72613.0,72594.0,0.50253254]
[1773617419874,0.041306,72611.0,72595.0,0.041314]
[1773617420174,0.041306,72611.0,72593.0,0.00362]
[1773617420175,0.001,72611.0,72598.0,0.041312]
[1773617420771,0.042304,72613.0,72598.0,0.041312]